bitfinex-derivatives/quotes_BTCF0:USTF0_20250614
["timestamp","ask_amount","ask_price","bid_price","bid_amount"]
[1749894500111,1.87707434,104980.0,104970.0,0.10742251]
[1749894500309,1.87707434,104980.0,104950.0,0.3608]
[1749894500310,1.59158924,104980.0,104950.0,0.3608]
[1749894500518,0.1904797,104950.0,104940.0,1.16681929]
[1749894500822,0.33726486,104950.0,104940.0,1.1397703]
[1749894501023,0.33726486,104950.0,104940.0,1.4850583]
[1749894501225,0.1904797,104950.0,104940.0,1.6318829]
[1749894501420,0.1904797,104950.0,104940.0,1.26019414]
[1749894501724,0.1904797,104950.0,104940.0,0.71315782]
[1749894502023,0.33726486,104950.0,104940.0,0.85994371]
[1749894502225,0.33726486,104950.0,104940.0,1.26863855]
[1749894502226,0.1904797,104950.0,104940.0,1.26863855]
[1749894502523,0.1904797,104950.0,104940.0,1.41526297]
[1749894502716,0.1904797,104950.0,104940.0,1.41521336]
[1749894502916,0.1904797,104950.0,104940.0,1.41921336]
[1749894503111,0.1904797,104950.0,104940.0,1.27242465]
[1749894503315,0.33726486,104950.0,104940.0,0.91461697]
[1749894503511,0.1904797,104950.0,104940.0,1.06145946]
[1749894503720,0.1904797,104950.0,104940.0,1.13629347]
[1749894503917,0.1904797,104950.0,104940.0,1.13629358]
[1749894504218,0.1904797,104950.0,104940.0,0.9317659]
[1749894504219,0.33726486,104950.0,104940.0,0.9317659]
[1749894504424,0.33726486,104950.0,104940.0,1.09344211]
[1749894504612,0.33726486,104950.0,104940.0,0.91228333]
[1749894504818,0.33726486,104950.0,104940.0,1.10696333]
[1749894505020,0.33726486,104950.0,104940.0,1.09344211]
[1749894505226,0.33726486,104950.0,104940.0,1.10696334]
[1749894505918,0.33726486,104950.0,104940.0,0.96017819]
[1749894506118,0.33726486,104950.0,104940.0,1.10696339]
[1749894506718,0.1904797,104950.0,104940.0,1.09344211]
[1749894506920,0.33726486,104950.0,104940.0,1.10704212]
[1749894507121,0.33726486,104950.0,104940.0,1.07855106]
[1749894507323,0.1904797,104950.0,104940.0,1.10704209]
[1749894507525,0.33726486,104950.0,104940.0,1.09344211]
[1749894507724,0.33726486,104950.0,104940.0,0.96025691]
[1749894507913,0.33726486,104950.0,104940.0,1.10704207]
[1749894508428,0.33726486,104950.0,104940.0,1.09215104]
[1749894508625,0.33726486,104950.0,104940.0,1.09344211]
[1749894509120,0.33726486,104950.0,104940.0,1.10704192]
[1749894509313,0.33726486,104950.0,104940.0,1.0934421]
[1749894509518,0.33726486,104950.0,104940.0,1.10701636]
[1749894509717,0.33726486,104950.0,104940.0,0.9602312]
[1749894509924,0.33726486,104950.0,104940.0,1.10701636]
[1749894510120,0.33726486,104950.0,104940.0,1.09212531]
[1749894510325,0.33726486,104950.0,104940.0,1.10704938]
[1749894510523,0.1904797,104950.0,104940.0,1.09215833]
[1749894510825,0.33726486,104950.0,104940.0,1.07855106]
[1749894511020,0.33726486,104950.0,104940.0,1.35895386]
[1749894511326,0.33726486,104950.0,104940.0,1.4814036]
[1749894511527,0.33726486,104950.0,104940.0,1.48139678]
[1749894511722,0.33726486,104950.0,104940.0,1.46781932]
[1749894511918,0.33726486,104950.0,104940.0,1.48139677]
[1749894512222,0.33726486,104950.0,104940.0,1.38610879]
[1749894512428,0.33726486,104950.0,104940.0,1.38610876]
[1749894513026,0.33726486,104950.0,104940.0,1.37253132]
[1749894513229,0.33726486,104950.0,104940.0,1.38610891]
[1749894513620,0.33726486,104950.0,104940.0,1.38610843]
[1749894513819,0.33726486,104950.0,104940.0,1.37121763]
[1749894514020,0.33726486,104950.0,104940.0,1.37253132]
[1749894514230,0.33726486,104950.0,104940.0,1.38610833]
[1749894514428,0.36986486,104950.0,104940.0,1.42896596]
[1749894514629,0.36986486,104950.0,104940.0,1.41407516]
[1749894514928,0.36986486,104950.0,104940.0,1.42896596]
[1749894515130,0.36986486,104950.0,104940.0,1.428966]
[1749894515329,0.36986486,104950.0,104940.0,1.40049871]
[1749894515627,0.36986486,104950.0,104940.0,1.41407518]
[1749894515820,0.36986486,104950.0,104940.0,1.42896598]
[1749894516017,0.36986486,104950.0,104940.0,1.41538951]
[1749894516218,0.2230797,104950.0,104940.0,1.38478951]
[1749894516427,0.36986486,104950.0,104940.0,1.38478951]
[1749894517130,0.2230797,104950.0,104940.0,1.38478951]
[1749894517533,0.2230797,104950.0,104940.0,1.4293887]
[1749894517834,0.2230797,104950.0,104940.0,1.29633234]
[1749894518134,0.2230797,104950.0,104940.0,1.4293887]
[1749894518732,0.2230797,104950.0,104940.0,1.4144979]
[1749894518933,0.2230797,104950.0,104940.0,1.44311751]
[1749894519136,0.2230797,104950.0,104940.0,1.4293887]
[1749894519335,0.2230797,104950.0,104940.0,1.44311751]
[1749894520933,0.2230797,104950.0,104940.0,1.42822341]
[1749894521134,0.2230797,104950.0,104940.0,1.44311421]
[1749894521324,0.2230797,104950.0,104940.0,1.4293887]
[1749894521527,0.2230797,104950.0,104940.0,1.42822338]
[1749894521724,0.2230797,104950.0,104940.0,1.4293887]
[1749894522034,0.2230797,104950.0,104940.0,1.50254708]
[1749894522236,0.2230797,104950.0,104940.0,1.48765626]
[1749894522432,0.2230797,104950.0,104940.0,1.50254706]
[1749894522937,0.2230797,104950.0,104940.0,1.48765627]
[1749894523132,0.2230797,104950.0,104940.0,1.50254708]
[1749894523436,0.21688513,104950.0,104940.0,1.50254704]
[1749894523736,0.21688513,104950.0,104940.0,1.50254706]
[1749894523935,0.21688513,104950.0,104940.0,1.48882155]
[1749894524238,0.21688513,104950.0,104940.0,1.3557169]
[1749894524435,0.21688513,104950.0,104940.0,1.50250207]
[1749894524732,0.21688513,104950.0,104940.0,1.48761128]
[1749894525035,0.21688513,104950.0,104940.0,1.34203639]
[1749894525242,0.21688513,104950.0,104940.0,1.48882155]
[1749894525837,0.21688513,104950.0,104940.0,1.50250206]
[1749894526033,0.21688513,104950.0,104940.0,1.48882155]
[1749894526537,0.21688513,104950.0,104940.0,1.47393075]
[1749894526838,0.21688513,104950.0,104940.0,1.48882155]
[1749894527142,0.21688513,104950.0,104940.0,1.50250207]
[1749894527436,0.21688513,104950.0,104940.0,1.34082611]
[1749894527635,0.36367029,104950.0,104940.0,1.31111772]
[1749894527934,0.39517029,104950.0,104940.0,1.44301208]
[1749894528146,0.39517029,104950.0,104940.0,1.45790288]
[1749894528435,0.39517029,104950.0,104940.0,1.45790284]
[1749894528632,0.39517029,104950.0,104940.0,1.44301204]
[1749894528835,0.39517029,104950.0,104940.0,1.45790286]
[1749894529338,0.39517029,104950.0,104940.0,1.45790284]
[1749894529533,0.39517029,104950.0,104940.0,1.44422236]
[1749894529735,0.39517029,104950.0,104940.0,1.45790286]
[1749894529942,0.39517029,104950.0,104940.0,1.44301208]
[1749894530136,0.24838513,104950.0,104940.0,1.45790288]
[1749894530329,0.39517029,104950.0,104940.0,1.45790286]
[1749894530542,0.39517029,104950.0,104940.0,1.53199605]
[1749894530828,0.39517029,104950.0,104940.0,1.53320634]
[1749894531131,0.39517029,104950.0,104940.0,1.53199591]
[1749894531336,0.39517029,104950.0,104940.0,1.53199594]
[1749894531534,0.39517029,104950.0,104940.0,1.54688671]
[1749894531938,0.39517029,104950.0,104940.0,1.53199592]
[1749894532136,0.39517029,104950.0,104940.0,1.51831555]
[1749894532334,0.39517029,104950.0,104940.0,1.53320634]
[1749894532645,0.39517029,104950.0,104940.0,1.54689408]
[1749894532839,0.39517029,104950.0,104940.0,1.53320634]
[1749894533037,0.24838513,104950.0,104940.0,1.51831555]
[1749894533238,0.39517029,104950.0,104940.0,1.51831555]
[1749894533443,0.39517029,104950.0,104940.0,1.54689407]
[1749894533738,0.39517029,104950.0,104940.0,1.54689408]
[1749894534042,0.39517029,104950.0,104940.0,1.54689405]
[1749894534236,0.39517029,104950.0,104940.0,1.53320634]
[1749894534437,0.39517029,104950.0,104940.0,1.53200326]
[1749894534639,0.39517029,104950.0,104940.0,1.54689406]
[1749894535148,0.39517029,104950.0,104940.0,1.51831555]
[1749894535333,0.39517029,104950.0,104940.0,1.54689459]
[1749894535539,0.39517029,104950.0,104940.0,1.53200381]
[1749894535734,0.39517029,104950.0,104940.0,1.5468946]
[1749894535934,0.39517029,104950.0,104940.0,1.54689456]
[1749894536144,0.39517029,104950.0,104940.0,1.53200377]
[1749894536339,0.39517029,104950.0,104940.0,1.54689456]
[1749894537242,0.24838513,104950.0,104940.0,1.54689456]
[1749894537445,0.39517029,104950.0,104940.0,1.54689455]
[1749894537643,0.39517029,104950.0,104940.0,1.54689456]
[1749894537837,0.39517029,104950.0,104940.0,1.53200377]
[1749894538044,0.39517029,104950.0,104940.0,1.54689455]
[1749894538244,0.39517029,104950.0,104940.0,1.01493153]
[1749894538446,0.24838513,104950.0,104940.0,0.15144754]
[1749894538744,0.51503346,104950.0,104940.0,0.38670074]
[1749894538941,0.51503346,104950.0,104940.0,0.51861004]
[1749894539142,0.51503346,104950.0,104940.0,0.53350792]
[1749894539341,0.51503346,104950.0,104940.0,0.51855292]
[1749894539541,0.51503346,104950.0,104940.0,0.53344464]
[1749894539944,0.51503346,104950.0,104940.0,0.51855293]
[1749894540141,0.51503346,104950.0,104940.0,0.47401181]
[1749894540344,0.36205335,104950.0,104940.0,0.47401181]
[1749894540541,0.50883851,104950.0,104940.0,0.53344465]
[1749894540744,0.50883851,104950.0,104940.0,0.51855293]
[1749894541243,0.36205335,104950.0,104940.0,0.87935233]
[1749894541445,0.50883851,104950.0,104940.0,0.58141108]
[1749894541652,0.50883851,104950.0,104940.0,0.59485735]
[1749894541849,0.41997534,104950.0,104940.0,0.59485065]
[1749894542047,0.41997534,104950.0,104940.0,0.56396137]
[1749894542350,0.41997534,104950.0,104940.0,0.55051096]
[1749894542550,0.50883851,104950.0,104940.0,0.53561942]
[1749894542952,0.50883851,104950.0,104940.0,0.55051096]
[1749894543353,0.50883851,104950.0,104940.0,0.53561942]
[1749894543552,0.50883851,104950.0,104940.0,0.49107811]
[1749894543848,0.50883851,104950.0,104940.0,0.47618657]
[1749894544153,0.41997534,104950.0,104940.0,0.55051094]
[1749894544545,0.41997534,104950.0,104940.0,1.54967094]
[1749894544942,0.50883851,104950.0,104940.0,1.47534657]
[1749894545253,0.36205335,104950.0,104940.0,1.49023809]
[1749894545452,0.50883851,104950.0,104940.0,1.49023809]
[1749894545661,0.50883851,104950.0,104940.0,1.47534657]
[1749894545864,0.50883851,104950.0,104940.0,1.44557013]
[1749894547160,0.50883851,104950.0,104940.0,1.41477013]
[1749894547464,0.50883851,104950.0,104940.0,1.41477016]
[1749894548063,0.50883851,104950.0,104940.0,1.07748729]
[1749894548262,0.50883851,104950.0,104940.0,1.26798522]
[1749894548564,0.50883851,104950.0,104940.0,1.26795506]
[1749894549463,0.50883851,104950.0,104940.0,1.41474022]
[1749894549659,0.50883851,104950.0,104940.0,1.39987871]
[1749894550054,0.50883851,104950.0,104940.0,1.41472113]
[1749894550462,0.50883851,104950.0,104940.0,1.39987871]
[1749894550658,0.50883851,104950.0,104940.0,1.41469127]
[1749894550854,0.50883851,104950.0,104940.0,1.39987871]
[1749894551261,0.36205335,104950.0,104940.0,1.41469127]
[1749894551568,0.50883851,104950.0,104940.0,1.44749127]
[1749894552165,0.50883851,104950.0,104940.0,1.43267871]
[1749894552765,0.50883851,104950.0,104940.0,1.44749594]
[1749894552955,0.50883851,104950.0,104940.0,1.43267871]
[1749894553160,0.50883851,104950.0,104940.0,1.44749594]
[1749894554167,0.50883851,104950.0,104940.0,1.46487871]
[1749894554760,0.50883851,104950.0,104940.0,1.47804451]
[1749894554968,0.50883851,104950.0,104940.0,1.52271247]
[1749894555166,0.50883851,104950.0,104940.0,1.52271249]
[1749894555564,0.50883851,104950.0,104940.0,1.5243639]
[1749894555868,0.33105335,104950.0,104940.0,1.52436388]
[1749894556069,0.47783851,104950.0,104940.0,1.50954667]
[1749894556368,0.33105335,104950.0,104940.0,1.88516388]
[1749894556565,0.47783851,104950.0,104940.0,1.87034667]
[1749894556771,0.47783851,104950.0,104940.0,1.88517893]
[1749894556971,0.47783851,104950.0,104940.0,1.87034667]
[1749894557171,0.47783851,104950.0,104940.0,1.8851789]
[1749894558566,0.47783851,104950.0,104940.0,1.87034667]
[1749894558962,0.47783851,104950.0,104940.0,1.8851789]
[1749894559165,0.47783851,104950.0,104940.0,1.73839374]
[1749894559366,0.47783851,104950.0,104940.0,1.87034667]
[1749894559571,0.47783851,104950.0,104940.0,1.73839374]
[1749894559768,0.47783851,104950.0,104940.0,1.8851789]
[1749894560862,0.47783851,104950.0,104940.0,1.87034667]
[1749894561069,0.47783851,104950.0,104940.0,1.8851789]
[1749894561572,0.47783851,104950.0,104940.0,1.87034667]
[1749894561967,0.47783851,104950.0,104940.0,1.8851789]
[1749894562773,0.47783851,104950.0,104940.0,1.87034667]
[1749894563073,0.47783851,104950.0,104940.0,1.88517889]
[1749894563268,0.47783851,104950.0,104940.0,1.88517887]
[1749894563873,0.38897534,104950.0,104940.0,1.88517887]
[1749894564779,0.38897534,104950.0,104940.0,1.88516748]
[1749894565377,0.47783851,104950.0,104940.0,1.88516748]
[1749894566366,0.47783851,104950.0,104940.0,1.73838232]
[1749894566573,0.47783851,104950.0,104940.0,1.8851675]
[1749894567072,0.47783851,104950.0,104940.0,1.88516753]
[1749894567073,0.50913851,104950.0,104940.0,1.88516753]
[1749894567972,0.50913851,104950.0,104940.0,1.88517416]
[1749894568177,0.50913851,104950.0,104940.0,1.88517414]
[1749894568778,0.47783851,104950.0,104940.0,1.94460699]
[1749894569772,0.47783851,104950.0,104940.0,1.94460696]
[1749894569973,0.47783851,104950.0,104940.0,1.92977952]
[1749894570173,0.47783851,104950.0,104940.0,1.94460696]
[1749894570478,0.47783851,104950.0,104940.0,1.92977952]
[1749894570672,0.47783851,104950.0,104940.0,1.94460696]
[1749894570875,0.44633851,104950.0,104940.0,1.94475215]
[1749894571078,0.29955335,104950.0,104940.0,1.94475215]
[1749894571280,0.17809018,104950.0,104940.0,2.02545198]
[1749894571479,0.17809018,104950.0,104940.0,2.02545178]
[1749894571870,0.17809018,104950.0,104940.0,2.01062471]
[1749894572072,0.17809018,104950.0,104940.0,2.02545179]
[1749894572271,0.17809018,104950.0,104940.0,2.17223695]
[1749894572478,0.17809018,104950.0,104940.0,1.98078711]
[1749894572979,0.17809018,104950.0,104940.0,1.9807871]
[1749894573577,0.17809018,104950.0,104940.0,2.02544173]
[1749894573978,0.17809018,104950.0,104940.0,1.87865657]
[1749894574180,0.17809018,104950.0,104940.0,1.9807871]
[1749894574380,0.17809018,104950.0,104940.0,1.96596007]
[1749894574682,0.17809018,104950.0,104940.0,1.9807871]
[1749894574873,0.17809018,104950.0,104940.0,2.17222466]
[1749894575068,0.17809018,104950.0,104940.0,2.15739764]
[1749894575279,0.17809018,104950.0,104940.0,2.17222465]
[1749894575467,0.17809018,104950.0,104940.0,2.02543949]
[1749894575672,0.17809018,104950.0,104940.0,2.0402665]
[1749894575868,0.17809018,104950.0,104940.0,2.02543949]
[1749894576069,0.17809018,104950.0,104940.0,2.0402665]
[1749894576273,0.17809018,104950.0,104940.0,2.02543949]
[1749894576477,0.17809018,104950.0,104940.0,2.0402665]
[1749894576880,0.17809018,104950.0,104940.0,2.17222465]
[1749894577468,0.17809018,104950.0,104940.0,2.12757224]
[1749894578078,0.17809018,104950.0,104940.0,1.98078708]
[1749894579082,0.17809018,104950.0,104940.0,2.12757224]
[1749894579376,0.17809018,104950.0,104940.0,2.37757224]
[1749894581581,0.17809018,104950.0,104940.0,2.23078708]
[1749894581883,0.20859018,104950.0,104940.0,2.23078708]
[1749894584981,0.20859018,104950.0,104940.0,2.20008708]
[1749894585676,0.20859018,104950.0,104940.0,2.15708038]
[1749894585980,0.20859018,104950.0,104940.0,2.20005758]
[1749894588186,0.0305,104950.0,104940.0,2.20005758]
[1749894588380,0.40582112,104960.0,104950.0,0.1904795]
[1749894588684,0.43722112,104960.0,104950.0,0.56777061]
[1749894589686,0.43722112,104960.0,104950.0,0.56977061]
[1749894591289,0.43722112,104960.0,104950.0,0.42498545]
[1749894591490,0.43722112,104960.0,104950.0,0.57177061]
[1749894594987,0.43722112,104960.0,104950.0,0.52714186]
[1749894595993,0.43722112,104960.0,104950.0,0.3803567]
[1749894596194,0.43722112,104960.0,104950.0,1.51026186]
[1749894597696,0.43722112,104960.0,104950.0,1.3634767]
[1749894597891,0.43722112,104960.0,104950.0,1.87106186]
[1749894598484,0.12040572,104960.0,104950.0,2.93913061]
[1749894598892,0.03154255,104960.0,104950.0,2.94013061]
[1749894599195,0.22200405,104960.0,104950.0,2.94013061]
[1749894602391,0.22200405,104960.0,104950.0,1.95701061]
[1749894602600,0.22200405,104960.0,104950.0,2.93917061]
[1749894603189,0.03154255,104960.0,104950.0,2.93917061]
[1749894603994,0.22200415,104960.0,104950.0,2.93917061]
[1749894604196,0.03154255,104960.0,104950.0,2.93917061]
[1749894604999,0.03154255,104960.0,104950.0,2.95397471]
[1749894606002,0.22200405,104960.0,104950.0,2.95397471]
[1749894608303,0.03154255,104960.0,104950.0,2.95397471]
[1749894608703,0.03154255,104960.0,104950.0,2.99857589]
[1749894610303,0.03154255,104960.0,104950.0,2.95397471]
[1749894610509,0.00014255,104960.0,104950.0,3.06003019]
[1749894610715,0.00014255,104960.0,104950.0,3.09073019]
[1749894611308,0.03194255,104960.0,104950.0,3.09073019]
[1749894611608,0.03194255,104960.0,104950.0,3.0017462]
[1749894611905,0.03194255,104960.0,104950.0,3.09073019]
[1749894613407,0.17520102,104980.0,104970.0,0.1904435]
[1749894613598,0.33836315,104980.0,104970.0,2.55659776]
[1749894613799,0.33836315,104980.0,104970.0,2.65879875]
[1749894614001,0.33836315,104980.0,104970.0,2.65879867]
[1749894614207,0.33836315,104980.0,104970.0,1.53241351]
[1749894614501,0.33836315,104980.0,104970.0,2.66275867]
[1749894614706,0.33836315,104980.0,104970.0,2.6627587]
[1749894614907,0.34036315,104980.0,104970.0,2.64796586]
[1749894615107,0.34036315,104980.0,104970.0,2.6627587]
[1749894615505,0.34036315,104980.0,104970.0,2.64796586]
[1749894615705,0.34036315,104980.0,104970.0,2.66275871]
[1749894616102,0.34036315,104980.0,104970.0,2.64796586]
[1749894616302,0.34236315,104980.0,104970.0,2.64796586]
[1749894616598,0.37286315,104980.0,104970.0,2.64796586]
[1749894617213,0.37086315,104980.0,104970.0,2.64796586]
[1749894617414,0.36886315,104980.0,104970.0,2.64796586]
[1749894618918,0.36886315,104980.0,104970.0,2.79475102]
[1749894619118,0.14783785,104980.0,104970.0,2.82755102]
[1749894619316,0.14783785,104980.0,104970.0,3.14945266]
[1749894619517,0.08633785,104980.0,104970.0,3.14945266]
[1749894619820,0.33186585,104990.0,104980.0,0.1904253]
[1749894620012,0.33186585,104990.0,104980.0,0.77378766]
[1749894620914,0.28426105,104990.0,104980.0,0.77378766]
[1749894621115,0.28626105,104990.0,104980.0,0.77378766]
[1749894622112,0.28426105,104990.0,104980.0,0.77378766]
[1749894622325,0.28626105,104990.0,104980.0,0.77378766]
[1749894622625,0.36260472,104990.0,104980.0,0.74098766]
[1749894623026,0.36060472,104990.0,104980.0,0.74098766]
[1749894623925,0.37035082,104990.0,104980.0,0.74098766]
[1749894626419,0.37140151,104990.0,104980.0,0.74098766]
[1749894627425,0.37035082,104990.0,104980.0,1.72130766]
[1749894627625,0.37159998,104990.0,104980.0,1.72130766]
[1749894627925,0.51838514,104990.0,104980.0,1.72130766]
[1749894628129,0.37159998,104990.0,104980.0,1.72130766]
[1749894629023,0.37159998,104990.0,104980.0,1.72126465]
[1749894629628,0.37159998,104990.0,104980.0,0.74094465]
[1749894629823,0.37159998,104990.0,104980.0,1.72086465]
[1749894630023,0.51838514,104990.0,104980.0,1.72082465]
[1749894630225,0.60724831,104990.0,104980.0,1.72082465]
[1749894631332,0.60724831,104990.0,104980.0,1.35994465]
[1749894631522,0.60724831,104990.0,104980.0,1.31701046]
[1749894631718,0.60924831,104990.0,104980.0,0.33721046]
[1749894631917,0.61124831,104990.0,104980.0,1.1697853]
[1749894632424,0.61124831,104990.0,104980.0,1.31657046]
[1749894632621,0.61124831,104990.0,104980.0,0.33721046]
[1749894632927,0.61124831,104990.0,104980.0,0.1904253]
[1749894633130,0.61171796,104990.0,104980.0,1.1695853]
[1749894633730,0.4649328,104990.0,104980.0,1.1695853]
[1749894633935,0.61171796,104990.0,104980.0,1.1695853]
[1749894636434,0.61171796,104990.0,104980.0,1.21253875]
[1749894639834,0.61171796,104990.0,104980.0,0.42229875]
[1749894640036,0.61171796,104990.0,104980.0,1.21129875]
[1749894641929,0.61185248,104990.0,104980.0,1.21129875]
[1749894642236,0.52298931,104990.0,104980.0,1.21129875]
[1749894642933,0.52345953,104990.0,104980.0,1.21129875]
[1749894644034,0.52382652,104990.0,104980.0,1.21129875]
[1749894645032,1.02744092,104990.0,104970.0,1.49042623]
[1749894645235,0.78695576,104990.0,104980.0,0.18892]
[1749894645432,1.08217951,104990.0,104980.0,0.3793452]
[1749894646436,1.08217951,104990.0,104980.0,0.18892]
[1749894646637,0.1904251,104980.0,104970.0,2.65797553]
[1749894646838,0.45573526,104980.0,104970.0,2.66797553]
[1749894647039,0.4584258,104980.0,104970.0,1.69085553]
[1749894647235,0.4584258,104980.0,104970.0,2.47298117]
[1749894647538,0.4584258,104980.0,104970.0,2.61976633]
[1749894648339,0.4584258,104980.0,104970.0,2.47298117]
[1749894648540,0.4584258,104980.0,104970.0,2.4463637]
[1749894648734,0.7007008,104980.0,104970.0,1.2027893]
[1749894649041,0.7007008,104980.0,104970.0,1.9918293]
[1749894649441,0.81920097,104980.0,104970.0,1.9918293]
[1749894649740,0.7007008,104980.0,104970.0,1.9918293]
[1749894649947,0.55424612,104980.0,104970.0,1.9918293]
[1749894650137,0.70303128,104980.0,104970.0,1.9918293]
[1749894650439,0.70336176,104980.0,104970.0,1.9918293]
[1749894650836,0.70536176,104980.0,104970.0,1.9918293]
[1749894651038,0.70950011,104980.0,104970.0,1.9918293]
[1749894651238,0.82797638,104980.0,104970.0,1.9918293]
[1749894651540,0.82797638,104980.0,104970.0,1.8014]
[1749894651733,0.70950011,104980.0,104970.0,1.1678034]
[1749894651937,0.70983059,104980.0,104970.0,1.1678034]
[1749894652938,0.70614861,104980.0,104970.0,1.1678034]
[1749894653136,0.71014546,104980.0,104970.0,1.1678034]
[1749894653335,0.82863566,104980.0,104970.0,1.1678034]
[1749894653538,0.6818505,104980.0,104970.0,1.1678034]
[1749894653735,0.82863566,104980.0,104970.0,1.1678034]
[1749894654244,0.71014546,104980.0,104970.0,0.97736]
[1749894654543,0.85858405,104980.0,104970.0,0.18896]
[1749894655137,0.97706945,104980.0,104970.0,0.18896]
[1749894655332,0.71014546,104980.0,104970.0,0.3794033]
[1749894656348,0.70600711,104980.0,104970.0,0.3794033]
[1749894656539,0.70600711,104980.0,104970.0,0.18896]
[1749894656843,0.70600711,104980.0,104970.0,0.3794033]
[1749894657140,0.71014546,104980.0,104970.0,0.3794033]
[1749894657347,0.71014546,104980.0,104970.0,0.18896]
[1749894659446,0.70600711,104980.0,104970.0,0.3794035]
[1749894660235,0.70600711,104980.0,104970.0,0.4120035]
[1749894661843,0.82449251,104980.0,104970.0,0.4120035]
[1749894662448,0.70600711,104980.0,104970.0,0.4120035]
[1749894662652,0.55922195,104980.0,104970.0,0.4120035]
[1749894662843,0.70600711,104980.0,104970.0,0.4120035]
[1749894663043,0.70600711,104980.0,104970.0,0.55878866]
[1749894663244,0.73640711,104980.0,104970.0,0.58948866]
[1749894663949,0.73640711,104980.0,104970.0,0.4427035]
[1749894664144,0.73640711,104980.0,104970.0,0.58948866]
[1749894665339,0.85489251,104980.0,104970.0,0.58948866]
[1749894665649,0.70810735,104980.0,104970.0,0.58948866]
[1749894665850,0.85489251,104980.0,104970.0,0.58948866]
[1749894668353,0.73640711,104980.0,104970.0,0.4427035]
[1749894668553,0.76690711,104980.0,104970.0,0.58948866]
[1749894669747,0.76690711,104980.0,104970.0,0.4427035]
[1749894670453,0.91749251,104980.0,104970.0,0.4427035]
[1749894671354,0.91749251,104980.0,104970.0,0.22156]
[1749894671554,0.91749251,104980.0,104970.0,0.18896]
[1749894672056,0.91749251,104980.0,104970.0,0.3794034]
[1749894672252,0.91796234,104980.0,104970.0,0.3794034]
[1749894672855,0.77117718,104980.0,104970.0,0.3794034]
[1749894673060,0.91796234,104980.0,104970.0,0.3794034]
[1749894673558,0.91796234,104980.0,104970.0,0.4120034]
[1749894674551,0.91796234,104980.0,104970.0,0.45501458]
[1749894674957,0.91796234,104980.0,104970.0,0.4120034]
[1749894675257,0.91796234,104980.0,104970.0,0.45501241]
[1749894675855,1.06032684,104980.0,104970.0,0.4120034]
[1749894676657,1.06446519,104980.0,104970.0,0.4120034]
[1749894677553,1.06446519,104980.0,104970.0,0.4120033]
[1749894677750,1.06446519,104980.0,104970.0,0.22156]
[1749894677950,1.06446519,104980.0,104970.0,0.18896]
[1749894678152,1.06446519,104980.0,104970.0,0.42243386]
[1749894678749,0.87404009,104980.0,104960.0,0.25186255]
[1749894678952,0.88352307,104970.0,104960.0,0.29489478]
[1749894679158,0.91301386,104970.0,104960.0,0.29489478]
[1749894679355,0.91748054,104970.0,104960.0,0.48535618]
[1749894680159,0.91748054,104970.0,104960.0,0.29489478]
[1749894680350,0.79452846,104970.0,104960.0,0.29489478]
[1749894680559,0.79923449,104970.0,104960.0,0.29489478]
[1749894680957,0.79947384,104970.0,104960.0,0.48535618]
[1749894682466,0.79947384,104970.0,104960.0,0.26209478]
[1749894682658,0.94327996,104970.0,104960.0,0.26209478]
[1749894683257,0.94327996,104970.0,104960.0,0.22993478]
[1749894684563,1.09006512,104970.0,104960.0,0.22993478]
[1749894684756,1.06220737,104970.0,104960.0,0.18690255]
[1749894685155,1.09050713,104970.0,104960.0,0.00014255]
[1749894685360,1.09050713,104970.0,104960.0,0.18550255]
[1749894685561,1.23894572,104970.0,104960.0,0.18550255]
[1749894687265,1.23894572,104970.0,104960.0,0.00014255]
[1749894687472,1.09050713,104970.0,104960.0,0.00014255]
[1749894689367,1.23894572,104970.0,104960.0,0.00014255]
[1749894690271,1.23938776,104970.0,104960.0,0.00014255]
[1749894690567,1.0926026,104970.0,104960.0,0.00014255]
[1749894690769,1.23938776,104970.0,104960.0,0.00014255]
[1749894690968,1.0926026,104970.0,104960.0,0.00014255]
[1749894691467,1.0926026,104970.0,104960.0,0.01498041]
[1749894691666,1.0926026,104970.0,104960.0,0.00014255]
[1749894691964,1.23938776,104970.0,104960.0,0.00014255]
[1749894692269,1.23938776,104970.0,104960.0,0.01498041]
[1749894692769,1.23938776,104970.0,104960.0,0.01503356]
[1749894693665,1.0926026,104970.0,104960.0,0.00014255]
[1749894694269,1.0926026,104970.0,104960.0,0.01503356]
[1749894694765,1.0926026,104970.0,104960.0,0.20549496]
[1749894695168,1.06265027,104970.0,104960.0,0.20549496]
[1749894695369,1.06265027,104970.0,104960.0,0.19060395]
[1749894695578,1.06265027,104970.0,104960.0,0.20549496]
[1749894695765,1.06265027,104970.0,104960.0,0.19060395]
[1749894695971,1.06265027,104970.0,104960.0,0.20549496]
[1749894696162,1.06265027,104970.0,104960.0,0.01503356]
[1749894696468,1.06265027,104970.0,104960.0,0.00014255]
[1749894696664,1.06265027,104970.0,104960.0,0.01503356]
[1749894696969,1.20943543,104970.0,104960.0,0.01503356]
[1749894697670,1.20943543,104970.0,104960.0,0.00014255]
[1749894697970,1.20990506,104970.0,104960.0,0.01503356]
[1749894698171,1.20990506,104970.0,104960.0,0.00014255]
[1749894698472,1.20990506,104970.0,104960.0,0.01503356]
[1749894698871,1.20990506,104970.0,104960.0,0.00014255]
[1749894699270,1.21037457,104970.0,104960.0,0.00014255]
[1749894699469,1.21037457,104970.0,104960.0,0.01503356]
[1749894699671,1.21037457,104970.0,104960.0,0.00014255]
[1749894699881,1.21037457,104970.0,104960.0,0.01498041]
[1749894700172,1.21037457,104970.0,104960.0,0.01497515]
[1749894700367,1.21074174,104970.0,104960.0,0.00014255]
[1749894700672,1.21074174,104970.0,104960.0,0.01497515]
[1749894700973,1.21074174,104970.0,104960.0,0.01503356]
[1749894701172,1.21074174,104970.0,104960.0,0.00014255]
[1749894701369,1.21074174,104970.0,104960.0,0.01503355]
[1749894701570,1.21074174,104970.0,104960.0,0.02992456]
[1749894701771,1.21074174,104970.0,104960.0,0.00014255]
[1749894702274,1.21074174,104970.0,104960.0,0.01503346]
[1749894703078,1.06395658,104970.0,104960.0,0.01503346]
[1749894704976,1.21074174,104970.0,104960.0,0.01503346]
[1749894705176,1.21074174,104970.0,104960.0,0.00014255]
[1749894705379,1.21074174,104970.0,104960.0,0.01503356]
[1749894705574,1.06395658,104970.0,104960.0,0.01503356]
[1749894705776,1.21074174,104970.0,104960.0,0.01503356]
[1749894706078,1.21074174,104970.0,104960.0,0.00014255]
[1749894706276,1.21098156,104970.0,104960.0,0.00014255]
[1749894706477,1.21098156,104970.0,104960.0,0.01503356]
[1749894706779,1.21098156,104970.0,104960.0,0.00014255]
[1749894707376,1.21122125,104970.0,104960.0,0.01503356]
[1749894707582,1.21122125,104970.0,104960.0,0.00014255]
[1749894707773,1.21122125,104970.0,104960.0,0.01503355]
[1749894708081,1.21122125,104970.0,104960.0,0.01503356]
[1749894708281,1.09273499,104970.0,104960.0,0.00014255]
[1749894708675,1.09273499,104970.0,104960.0,0.01503356]
[1749894708876,1.09273499,104970.0,104960.0,0.01503355]
[1749894709078,1.09273499,104970.0,104960.0,0.01503357]
[1749894709272,1.80332982,104970.0,104940.0,0.04455633]
[1749894709477,0.78701331,104950.0,104940.0,0.04300789]
[1749894709876,0.76316476,104950.0,104940.0,0.07380789]
[1749894710179,0.76316476,104950.0,104940.0,0.25920789]